[Event "SVK-ch Open 2018"]
[Site "Banska Stiavnica"]
[Date "2018.07.10"]
[Round "4"]
[White "Talla, Vladimir"]
[Black "Macko, Michal"]
[Result "1/2-1/2"]
[ECO "E24"]
[WhiteElo "2402"]
[BlackElo "2158"]
[Annotator "NA"]
[PlyCount "34"]
[EventDate "2018.07.07"]
[EventType "swiss"]
[EventCountry "SVK"]
[SourceTitle "playchess.com"]
[Source "ChessBase"]
[SourceQuality "1"]
[TimeControl "40/5400+30:1800+30"]

1. d4 {[%emt 0:04:11]} Nf6 {[%emt 0:00:00]} 2. c4 {[%emt 0:00:06]} e6 {[%emt 0:00:00]} 3. Nc3 {[%emt 0:00:06]} Bb4 {[%emt 0:00:00]} 4. a3 {[%emt 0:00:10]} Bxc3+ {[%emt 0:00:10]} 5. bxc3 {[%emt 0:00:04]} b6 {[%emt 0:00:06]} 6. f3 {[%emt 0:01:22]} d6 $11 {[%emt 0:09:02]} 7. e4 {[%emt 0:01:28]} Nc6 {[%emt 0:07:35]} 8. Bd3 {[%emt 0:13:50]} Na5 {[%emt 0:02:07]} 9. Nh3 {[%emt 0:01:24]} Ba6 {[%emt 0:02:03]} 10. Bg5 {[%emt 0:04:53]} Qd7 {[%emt 0:01:55]} 11. e5 {[%emt 0:01:24]} dxe5 {[%emt 0:04:06]} 12. dxe5 {[%emt 0:01:20]} h6 {[%emt 0:12:16]} 13. Be3 {[%emt 0:22:26]} Ng8 {[%emt 0:05:06]} 14. Be4 {[%emt 0:00:41]} O-O-O {[%emt 0:00:20]} 15. Qxd7+ {[%emt 0:01:02]} Rxd7 {[%emt 0:00:06]} 16. c5 {[%emt 0:00:05]} Ne7 {[%emt 0:00:18]} 17. Kf2 {[%emt 0:04:44]} Rhd8 {[%emt 0:08:54]} 1/2-1/2

[Event "SVK-ch Open 2018"]
[Site "Banska Stiavnica"]
[Date "2018.07.10"]
[Round "4"]
[White "Jablonicky, Martin"]
[Black "Demeter, Peter"]
[Result "1/2-1/2"]
[ECO "B07"]
[WhiteElo "2356"]
[BlackElo "2146"]
[Annotator "NA"]
[PlyCount "104"]
[EventDate "2018.07.07"]
[EventType "swiss"]
[EventCountry "SVK"]
[SourceTitle "playchess.com"]
[Source "ChessBase"]
[SourceQuality "1"]
[TimeControl "40/5400+30:1800+30"]

1. e4 {[%emt 0:00:00]} d6 {[%emt 0:01:40]} 2. d4 {[%emt 0:00:00]} Nf6 {[%emt 0:00:11]} 3. Nc3 {[%emt 0:00:00]} g6 {[%emt 0:00:05]} 4. Bf4 {[%emt 0:00:40]} Bg7 {[%emt 0:00:17]} 5. Qd2 {[%emt 0:00:05]} O-O {[%emt 0:01:55]} 6. Bh6 {[%emt 0:00:15]} e5 {[%emt 0:00:22]} 7. d5 {[%emt 0:01:50]} c6 $11 {[%emt 0:02:24]} (7... Nxe4 $5 8. Nxe4 Qh4 9. Bxg7 Qxe4+ 10. Ne2 Kxg7 $15) 8. h4 {[%emt 0:04:16]} cxd5 {[%emt 0:01:56]} 9. exd5 {[%emt 0:00:57]} Bxh6 {[%emt 0:06:10]} 10. Qxh6 {[%emt 0:00:20]} Qb6 {[%emt 0:00:07]} 11. Qd2 {[%emt 0:11:18]} Qxb2 {[%emt 0:01:37]} 12. Rb1 {[%emt 0:01:51]} Qa3 {[%emt 0:00:06]} 13. h5 {[%emt 0:08:32]} Nbd7 {[%emt 0:02:55]} 14. Be2 {[%emt 0:07:02]} Nb6 {[%emt 0:10:01]} 15. Nf3 {[%emt 0:14:32]} Bg4 {[%emt 0:02:40]} 16. Rb3 {[%emt 0:17:04]} Qc5 {[%emt 0:02:23]} 17. Ng5 {[%emt 0:03:00]} Bxe2 {[%emt 0:02:39]} 18. Nce4 {[%emt 0:03:47]} Nxe4 {[%emt 0:00:13]} 19. Nxe4 {[%emt 0:00:03]} Qd4 {[%emt 0:02:47]} 20. Qxd4 {[%emt 0:01:44]} exd4 {[%emt 0:00:04]} 21. Kxe2 {[%emt 0:00:06]} Nxd5 {[%emt 0:06:41]} 22. hxg6 {[%emt 0:04:50]} hxg6 {[%emt 0:01:05]} 23. Rxb7 {[%emt 0:02:01]} Rfc8 {[%emt 0:08:16]} 24. Kd2 {[%emt 0:02:08]} Rcb8 {[%emt 0:07:09]} 25. Rhb1 {[%emt 0:02:04]} Nb6 {[%emt 0:02:38]} 26. Rxb8+ {[%emt 0:01:13]} Rxb8 {[%emt 0:00:05]} 27. Rb4 {[%emt 0:01:03]} Rd8 {[%emt 0:03:51]} 28. Rxd4 {[%emt 0:01:53]} d5 {[%emt 0:04:02]} 29. g4 {[%emt 0:03:22]} Kf8 {[%emt 0:08:11]} 30. Nf6 {[%emt 0:00:56]} Ke7 {[%emt 0:00:21]} 31. g5 {[%emt 0:00:32]} Ke6 {[%emt 0:00:33]} 32. Ng4 {[%emt 0:03:24]} Rc8 {[%emt 0:03:26]} 33. Rf4 {[%emt 0:01:19]} Nd7 {[%emt 0:01:21]} 34. Nh6 {[%emt 0:01:19]} f5 {[%emt 0:03:21]} 35. Ra4 {[%emt 0:01:03]} Rc7 {[%emt 0:00:06]} 36. Ra6+ {[%emt 0:00:12]} Nb6 {[%emt 0:00:20]} 37. f4 {[%emt 0:00:41]} d4 {[%emt 0:01:19]} 38. Kd3 {[%emt 0:01:14]} Rc3+ {[%emt 0:05:51]} 39. Kxd4 {[%emt 0:00:57]} Rf3 {[%emt 0:00:09]} 40. Rxa7 {[%emt 0:01:05]} Rxf4+ {[%emt 0:00:07]} 41. Kc5 {[%emt 0:05:22]} Nd7+ {[%emt 0:00:40]} 42. Kb5 {[%emt 0:01:10]} Ne5 {[%emt 0:01:23]} 43. Rc7 {[%emt 0:08:36]} Rf1 {[%emt 0:04:55]} 44. Kc5 {[%emt 0:04:14]} Rc1 {[%emt 0:07:07]} 45. Kd4 {[%emt 0:01:22]} Nf3+ {[%emt 0:03:47]} 46. Ke3 {[%emt 0:00:29]} Nxg5 {[%emt 0:00:52]} 47. Rc6+ {[%emt 0:00:23]} Ke5 {[%emt 0:01:04]} 48. Rxg6 {[%emt 0:00:21]} Ne4 {[%emt 0:00:10]} 49. Nf7+ {[%emt 0:11:24]} Kd5 {[%emt 0:00:16]} 50. Rg2 {[%emt 0:01:01]} Re1+ {[%emt 0:02:19]} 51. Kf3 {[%emt 0:01:19]} Rf1+ {[%emt 0:00:14]} 52. Ke2 {[%emt 0:00:15]} Rc1 {[%emt 0:01:55]} 1/2-1/2

[Event "SVK-ch Open 2018"]
[Site "Banska Stiavnica"]
[Date "2018.07.10"]
[Round "4"]
[White "Vojtek, Vladimir"]
[Black "Cech, Dominik"]
[Result "1/2-1/2"]
[ECO "A48"]
[WhiteElo "2310"]
[BlackElo "2151"]
[Annotator "NA"]
[PlyCount "91"]
[EventDate "2018.07.07"]
[EventType "swiss"]
[EventCountry "SVK"]
[SourceTitle "playchess.com"]
[Source "ChessBase"]
[SourceQuality "1"]
[TimeControl "40/5400+30:1800+30"]

1. d4 {[%emt 0:00:00]} Nf6 {[%emt 0:00:00]} 2. Nf3 {[%emt 0:00:00]} g6 {[%emt 0:00:19]} 3. Nc3 {[%emt 0:07:38]} d5 {[%emt 0:03:03]} 4. Bf4 {[%emt 0:00:15]} Bg7 {[%emt 0:03:02]} 5. e3 {[%emt 0:00:07]} a6 {[%emt 0:03:30]} 6. Be2 {[%emt 0:00:52]} c5 {[%emt 0:03:57]} 7. O-O {[%emt 0:09:18]} Nc6 {[%emt 0:07:25]} 8. Ne5 {[%emt 0:06:25]} cxd4 {[%emt 0:04:28]} 9. exd4 {[%emt 0:00:16]} Qb6 {[%emt 0:04:33]} 10. Nxc6 {[%emt 0:02:59]} Qxc6 {[%emt 0:05:44]} 11. Bf3 {[%emt 0:07:35]} O-O {[%emt 0:04:41]} 12. Re1 {[%emt 0:04:24]} Be6 {[%emt 0:01:12]} 13. a4 {[%emt 0:09:04]} b5 {[%emt 0:07:39]} 14. axb5 {[%emt 0:05:08]} axb5 {[%emt 0:00:13]} 15. Na2 {[%emt 0:08:36]} Qb6 {[%emt 0:13:02]} 16. c3 {[%emt 0:00:31]} Ra4 {[%emt 0:01:49]} 17. Nb4 {[%emt 0:01:58]} Rfa8 {[%emt 0:01:15]} 18. Rc1 {[%emt 0:03:41]} Rd8 {[%emt 0:07:35]} 19. Qb3 {[%emt 0:05:55]} Qb7 {[%emt 0:02:39]} 20. h3 {[%emt 0:06:21]} h5 {[%emt 0:04:13]} 21. Rcd1 {[%emt 0:04:54]} Bf5 {[%emt 0:04:05]} 22. c4 {[%emt 0:08:15]} Be4 {[%emt 0:07:22]} 23. Bxe4 {[%emt 0:01:40]} dxe4 {[%emt 0:01:01]} 24. c5 {[%emt 0:02:13]} Rxb4 {[%emt 0:04:51]} 25. Qxb4 {[%emt 0:00:04]} Nd5 {[%emt 0:00:06]} 26. Qd2 {[%emt 0:00:08]} Nxf4 {[%emt 0:00:29]} 27. Qxf4 {[%emt 0:00:04]} Bxd4 {[%emt 0:00:23]} 28. Rc1 {[%emt 0:01:29]} Bxb2 {[%emt 0:01:37]} 29. Rc2 {[%emt 0:00:30]} Bd4 {[%emt 0:01:56]} 30. c6 {[%emt 0:01:15]} Qb6 {[%emt 0:00:13]} 31. Qxe4 {[%emt 0:00:31]} e5 {[%emt 0:00:40]} 32. c7 {[%emt 0:00:49]} Rc8 {[%emt 0:00:32]} 33. Qd5 {[%emt 0:00:09]} Kg7 {[%emt 0:01:16]} 34. Qd7 {[%emt 0:00:35]} Qb7 {[%emt 0:01:04]} 35. Rb1 {[%emt 0:01:26]} b4 {[%emt 0:00:28]} 36. Qc6 {[%emt 0:01:07]} Qa7 {[%emt 0:00:42]} 37. Rxb4 {[%emt 0:00:29]} Qa1+ {[%emt 0:00:44]} 38. Kh2 {[%emt 0:00:35]} Qe1 {[%emt 0:00:32]} 39. Rxd4 {[%emt 0:01:20]} exd4 {[%emt 0:00:19]} 40. Qd6 {[%emt 0:00:28]} Qd1 {[%emt 0:00:44]} 41. Rc4 {[%emt 0:30:48]} d3 {[%emt 0:03:26]} 42. Rd4 {[%emt 0:00:00]} Qe2 {[%emt 0:06:03]} 43. f4 {[%emt 0:00:00]} Qe6 {[%emt 0:08:31]} 44. Qd8 {[%emt 0:00:00]} Qf6 {[%emt 0:01:06]} 45. Kg3 {[%emt 0:00:00]} Rxc7 {[%emt 0:03:31]} 46. Qxf6+ {[%emt 0:00:00]} 1/2-1/2

[Event "SVK-ch Open 2018"]
[Site "Banska Stiavnica"]
[Date "2018.07.10"]
[Round "4"]
[White "Urhegyi, Marton"]
[Black "Pacher, Milan"]
[Result "0-1"]
[ECO "C68"]
[WhiteElo "2303"]
[BlackElo "2467"]
[Annotator "ChessBase"]
[PlyCount "96"]
[EventDate "2018.07.07"]
[EventType "swiss"]
[EventCountry "SVK"]
[SourceTitle "playchess.com"]
[Source "ChessBase"]
[SourceQuality "1"]
[TimeControl "40/5400+30:1800+30"]

1. e4 {[%emt 0:00:00]} e5 {[%emt 0:00:00]} 2. Nf3 {[%emt 0:00:00]} Nc6 {[%emt 0:00:00]} 3. Bb5 {[%emt 0:00:00]} a6 {[%emt 0:00:04]} 4. Bxc6 {[%emt 0:00:00]} dxc6 {[%emt 0:00:05]} 5. O-O {[%emt 0:00:08]} Bd6 {[%emt 0:00:17]} 6. d4 {[%emt 0:00:34]} exd4 {[%emt 0:00:06]} 7. Qxd4 {[%emt 0:01:28]} f6 {[%emt 0:00:08]} 8. Nbd2 {[%emt 0:09:02]} Be6 {[%emt 0:01:27]} 9. Nb3 {[%emt 0:03:04]} b6 {[%emt 0:02:46]} 10. e5 {[%emt 0:04:21]} fxe5 {[%emt 0:05:25]} 11. Nxe5 {[%emt 0:03:25]} Ne7 {[%emt 0:01:39]} 12. Bg5 {[%emt 0:10:46]} O-O {[%emt 0:01:00]} 13. Nc4 {[%emt 0:20:26]} c5 {[%emt 0:12:20]} 14. Qe4 {[%emt 0:07:31]} Bd5 {[%emt 0:07:57]} 15. Qd3 {[%emt 0:04:27]} h6 {[%emt 0:03:09]} 16. Qxd5+ {[%emt 0:11:54]} Nxd5 {[%emt 0:05:03]} 17. Bxd8 {[%emt 0:00:05]} Raxd8 {[%emt 0:00:05]} 18. Rad1 {[%emt 0:01:03]} Be7 {[%emt 0:02:53]} 19. c3 {[%emt 0:04:25]} Nf4 {[%emt 0:03:11]} 20. Rxd8 {[%emt 0:03:14]} Rxd8 {[%emt 0:00:08]} 21. g3 {[%emt 0:01:03]} Nd3 {[%emt 0:00:50]} 22. Nc1 {[%emt 0:03:11]} b5 {[%emt 0:01:56]} 23. Nxd3 {[%emt 0:00:11]} Rxd3 {[%emt 0:00:03]} 24. Ne5 {[%emt 0:02:12]} Rd2 {[%emt 0:03:31]} 25. Rb1 {[%emt 0:00:16]} c4 {[%emt 0:02:11]} 26. Nf3 {[%emt 0:00:36]} Rd3 {[%emt 0:01:04]} 27. Ne1 {[%emt 0:00:27]} Rd5 {[%emt 0:00:46]} 28. Kf1 {[%emt 0:01:27]} Bc5 {[%emt 0:02:44]} 29. Nf3 {[%emt 0:07:15]} Kf7 {[%emt 0:02:22]} 30. Re1 {[%emt 0:00:37]} Kf6 {[%emt 0:00:34]} 31. Re8 {[%emt 0:00:46]} Rd1+ {[%emt 0:00:29]} 32. Re1 {[%emt 0:00:14]} Rd3 {[%emt 0:00:34]} 33. Ng1 {[%emt 0:01:32]} a5 {[%emt 0:01:37]} 34. Ke2 {[%emt 0:00:47]} g5 {[%emt 0:03:06]} 35. h3 {[%emt 0:00:24]} a4 {[%emt 0:01:24]} 36. a3 {[%emt 0:00:28]} h5 {[%emt 0:00:26]} 37. Nf3 {[%emt 0:00:29]} Kf5 {[%emt 0:02:23]} 38. Rh1 {[%emt 0:00:32]} Rd8 {[%emt 0:01:39]} 39. g4+ {[%emt 0:00:31]} Kf4 {[%emt 0:02:43]} 40. Nh2 {[%emt 0:00:38]} h4 {[%emt 0:03:46]} 41. Re1 {[%emt 0:21:31]} Rd3 {[%emt 0:01:17]} 42. Kf1 {[%emt 0:00:22]} Rxh3 {[%emt 0:00:31]} 43. Kg2 {[%emt 0:00:19]} Rd3 {[%emt 0:00:07]} 44. Re2 {[%emt 0:00:50]} h3+ {[%emt 0:01:11]} 45. Kf1 {[%emt 0:00:49]} Rd1+ {[%emt 0:01:13]} 46. Re1 {[%emt 0:00:05]} Rd2 {[%emt 0:00:29]} 47. Re2 {[%emt 0:00:35]} Rxe2 {[%emt 0:00:05]} 48. Kxe2 {[%emt 0:00:06]} Bd6 {[%emt 0:00:06]} 0-1

[Event "SVK-ch Open 2018"]
[Site "Banska Stiavnica"]
[Date "2018.07.10"]
[Round "4"]
[White "Kantorik, Marian"]
[Black "Furman, Slavomir"]
[Result "1-0"]
[ECO "A88"]
[WhiteElo "2260"]
[BlackElo "1768"]
[Annotator "NA"]
[PlyCount "53"]
[EventDate "2018.07.07"]
[EventType "swiss"]
[EventCountry "SVK"]
[SourceTitle "playchess.com"]
[Source "ChessBase"]
[SourceQuality "1"]
[TimeControl "40/5400+30:1800+30"]

1. d4 {[%emt 0:05:33]} f5 {[%emt 0:00:00]} 2. c4 {[%emt 0:00:26]} Nf6 {[%emt 0:00:00]} 3. Nc3 {[%emt 0:00:12]} d6 {[%emt 0:00:30]} 4. Nf3 {[%emt 0:01:13]} g6 {[%emt 0:00:39]} 5. g3 {[%emt 0:01:02]} Bg7 {[%emt 0:01:02]} 6. Bg2 {[%emt 0:00:07]} O-O {[%emt 0:01:41]} 7. O-O {[%emt 0:00:06]} c6 $14 {[%emt 0:00:39]} 8. d5 {[%emt 0:03:17]} e5 {[%emt 0:03:08]} 9. dxe6 {[%emt 0:00:20]} Bxe6 {[%emt 0:00:06]} 10. Qd3 {[%emt 0:08:16]} Na6 {[%emt 0:12:51]} 11. Ng5 {[%emt 0:04:40]} Re8 {[%emt 0:14:25]} 12. Nxe6 {[%emt 0:05:14]} Rxe6 {[%emt 0:00:12]} 13. Bf4 {[%emt 0:14:11]} Qd7 {[%emt 0:09:22]} 14. Rad1 {[%emt 0:03:36]} Rd8 {[%emt 0:03:16]} 15. a3 {[%emt 0:05:07]} Nc5 {[%emt 0:06:25]} 16. Qc2 {[%emt 0:00:24]} Nce4 {[%emt 0:04:57]} 17. Nxe4 {[%emt 0:02:25]} Nxe4 {[%emt 0:00:39]} 18. f3 {[%emt 0:00:17]} Nf6 {[%emt 0:01:10]} 19. e4 {[%emt 0:01:56]} fxe4 {[%emt 0:00:58]} 20. Bh3 {[%emt 0:07:56]} exf3 {[%emt 0:03:56]} 21. Rxf3 {[%emt 0:01:22]} Qe8 {[%emt 0:03:28]} 22. Bxe6+ {[%emt 0:01:03]} Qxe6 {[%emt 0:00:06]} 23. Re3 {[%emt 0:01:08]} Qg4 {[%emt 0:02:49]} 24. Qe2 {[%emt 0:10:55]} Qf5 {[%emt 0:03:06]} 25. Re7 {[%emt 0:00:53]} b5 {[%emt 0:05:17]} 26. Rxg7+ {[%emt 0:00:58]} Kxg7 {[%emt 0:01:26]} 27. Qe7+ {[%emt 0:00:10]} 1-0

[Event "SVK-ch Open 2018"]
[Site "Banska Stiavnica"]
[Date "2018.07.10"]
[Round "4"]
[White "Franzen, Jozef"]
[Black "Brhel, Jan"]
[Result "1-0"]
[ECO "A04"]
[WhiteElo "2256"]
[BlackElo "2070"]
[Annotator "NA"]
[PlyCount "104"]
[EventDate "2018.07.07"]
[EventType "swiss"]
[EventCountry "SVK"]
[SourceTitle "playchess.com"]
[Source "ChessBase"]
[SourceQuality "1"]
[TimeControl "40/5400+30:1800+30"]

1. Nf3 {[%emt 0:00:00]} d6 {[%emt 0:02:56]} 2. d4 {[%emt 0:00:00]} Nf6 {[%emt 0:01:16]} 3. g3 {[%emt 0:00:21]} g6 {[%emt 0:00:39]} 4. Bg2 {[%emt 0:00:06]} Bg7 {[%emt 0:00:09]} 5. O-O {[%emt 0:00:06]} O-O {[%emt 0:00:34]} 6. c4 {[%emt 0:00:06]} Nbd7 {[%emt 0:10:33]} 7. Nc3 {[%emt 0:00:10]} c6 {[%emt 0:03:34]} 8. e4 {[%emt 0:00:22]} Qc7 {[%emt 0:00:32]} 9. h3 {[%emt 0:01:17]} e5 {[%emt 0:04:22]} 10. Be3 {[%emt 0:00:27]} Re8 {[%emt 0:05:50]} 11. d5 {[%emt 0:01:14]} cxd5 {[%emt 0:10:56]} 12. cxd5 {[%emt 0:00:12]} a6 {[%emt 0:03:44]} 13. Rc1 {[%emt 0:02:48]} Qb8 {[%emt 0:01:12]} 14. Nd2 {[%emt 0:04:34]} b5 {[%emt 0:00:57]} 15. Qe2 {[%emt 0:04:06]} Nb6 {[%emt 0:04:52]} 16. a3 Bd7 17. Rc2 {[%emt 0:08:43]} Rc8 {[%emt 0:04:57]} 18. Rfc1 Nc4 {[%emt 0:04:55]} 19. Nxc4 {[%emt 0:01:49]} Rxc4 20. b3 {[%emt 0:02:48]} Rc8 {[%emt 0:02:51]} 21. Na2 {[%emt 0:00:49]} Rxc2 {[%emt 0:00:35]} 22. Qxc2 {[%emt 0:00:52]} Ne8 {[%emt 0:02:32]} 23. Nb4 {[%emt 0:01:03]} Bf6 {[%emt 0:00:34]} 24. Nc6 {[%emt 0:01:11]} Qb7 {[%emt 0:03:32]} 25. Na5 {[%emt 0:00:23]} Qb8 {[%emt 0:00:36]} 26. Qd2 {[%emt 0:00:43]} Bd8 {[%emt 0:01:48]} 27. Nc6 {[%emt 0:00:52]} Qb7 {[%emt 0:00:14]} 28. Nxd8 {[%emt 0:01:39]} Rxd8 {[%emt 0:00:08]} 29. f4 {[%emt 0:01:39]} f6 {[%emt 0:00:46]} 30. Kf2 {[%emt 0:00:55]} Rc8 {[%emt 0:00:21]} 31. Ke1 {[%emt 0:01:38]} Rxc1+ {[%emt 0:12:03]} 32. Qxc1 {[%emt 0:00:02]} a5 {[%emt 0:00:15]} 33. Qc3 {[%emt 0:03:30]} b4 {[%emt 0:02:02]} 34. axb4 {[%emt 0:00:08]} axb4 {[%emt 0:00:08]} 35. Qc4 {[%emt 0:01:34]} Qb5 {[%emt 0:11:40]} 36. Qxb5 {[%emt 0:00:59]} Bxb5 {[%emt 0:00:03]} 37. Bd2 {[%emt 0:02:31]} Bd3 {[%emt 0:02:31]} 38. Kd1 {[%emt 0:00:11]} f5 {[%emt 0:01:31]} 39. exf5 {[%emt 0:00:53]} gxf5 {[%emt 0:00:03]} 40. fxe5 {[%emt 0:00:46]} dxe5 {[%emt 0:00:03]} 41. Bxb4 {[%emt 0:30:16]} e4 {[%emt 0:31:09]} 42. Kd2 {[%emt 0:03:08]} Nf6 {[%emt 0:02:27]} 43. d6 {[%emt 0:00:36]} Kf7 {[%emt 0:00:18]} 44. Bc5 {[%emt 0:05:18]} Ke6 {[%emt 0:00:00]} 45. Ke3 {[%emt 0:00:00]} Nh5 {[%emt 0:00:00]} 46. Kf2 {[%emt 0:00:00]} f4 {[%emt 0:00:00]} 47. gxf4 {[%emt 0:00:00]} Nxf4 {[%emt 0:00:00]} 48. Bh1 {[%emt 0:00:00]} Nxh3+ {[%emt 0:00:00]} 49. Ke3 {[%emt 0:00:00]} Ng5 {[%emt 0:00:00]} 50. Bg2 {[%emt 0:00:00]} Nf7 {[%emt 0:00:00]} 51. Bh3+ {[%emt 0:00:00]} Kd5 {[%emt 0:00:00]} 52. b4 {[%emt 0:00:00]} Nxd6 {[%emt 0:00:00] Kxe4+} 1-0

[Event "SVK-ch Open 2018"]
[Site "Banska Stiavnica"]
[Date "2018.07.10"]
[Round "4"]
[White "Sarkozy, Ladislav"]
[Black "Milcova, Zuzana"]
[Result "1/2-1/2"]
[ECO "D12"]
[WhiteElo "2247"]
[BlackElo "2002"]
[Annotator "NA"]
[PlyCount "37"]
[EventDate "2018.07.07"]
[EventType "swiss"]
[EventCountry "SVK"]
[SourceTitle "playchess.com"]
[Source "ChessBase"]
[SourceQuality "1"]
[TimeControl "40/5400+30:1800+30"]

1. d4 {[%emt 0:00:00]} d5 {[%emt 0:00:58]} 2. c4 {[%emt 0:00:00]} c6 {[%emt 0:00:03]} 3. Nf3 {[%emt 0:00:00]} Nf6 {[%emt 0:00:10]} 4. e3 {[%emt 0:00:08]} Bf5 {[%emt 0:01:55]} 5. Nc3 {[%emt 0:01:27]} e6 {[%emt 0:00:34]} 6. Nh4 {[%emt 0:01:22]} Bg4 {[%emt 0:04:30]} 7. Qb3 {[%emt 0:00:47]} Qc8 {[%emt 0:02:27]} 8. h3 {[%emt 0:00:35]} Bh5 {[%emt 0:01:42]} 9. g4 {[%emt 0:00:15]} Bg6 {[%emt 0:01:18]} 10. Nxg6 {[%emt 0:01:03]} hxg6 {[%emt 0:00:01]} 11. Bg2 {[%emt 0:00:39]} Nbd7 {[%emt 0:04:34]} 12. e4 {[%emt 0:10:00]} dxe4 {[%emt 0:24:07]} 13. Nxe4 {[%emt 0:01:43]} Nxe4 {[%emt 0:00:23]} 14. Bxe4 {[%emt 0:00:02]} e5 {[%emt 0:01:40]} 15. Be3 {[%emt 0:25:27]} exd4 {[%emt 0:11:42]} 16. Bxd4 {[%emt 0:00:05]} Nc5 {[%emt 0:00:48]} 17. Bxc5 {[%emt 0:00:19]} Bxc5 {[%emt 0:00:05]} 18. O-O-O {[%emt 0:00:08]} O-O {[%emt 0:01:03]} 19. f4 {[%emt 0:03:49]} 1/2-1/2

[Event "SVK-ch Open 2018"]
[Site "Banska Stiavnica"]
[Date "2018.07.10"]
[Round "4"]
[White "Molnar, Erno"]
[Black "Odler, Daniel"]
[Result "1-0"]
[ECO "B33"]
[WhiteElo "2231"]
[BlackElo "2067"]
[Annotator "NA"]
[PlyCount "103"]
[EventDate "2018.07.07"]
[EventType "swiss"]
[EventCountry "SVK"]
[SourceTitle "playchess.com"]
[Source "ChessBase"]
[SourceQuality "1"]
[TimeControl "40/5400+30:1800+30"]

1. e4 {[%emt 0:01:05]} c5 {[%emt 0:00:00]} 2. Nf3 {[%emt 0:00:08]} Nc6 {[%emt 0:00:15]} 3. d4 {[%emt 0:00:07]} cxd4 {[%emt 0:00:06]} 4. Nxd4 {[%emt 0:00:05]} Nf6 {[%emt 0:00:18]} 5. Nc3 {[%emt 0:00:06]} e6 {[%emt 0:00:14]} 6. Ndb5 {[%emt 0:00:10]} Bb4 {[%emt 0:00:17]} 7. a3 {[%emt 0:00:15]} Bxc3+ {[%emt 0:00:19]} 8. Nxc3 {[%emt 0:00:05]} d5 {[%emt 0:00:09]} 9. exd5 {[%emt 0:00:08]} exd5 {[%emt 0:00:14]} 10. Bd3 {[%emt 0:00:11]} O-O {[%emt 0:00:22]} 11. O-O {[%emt 0:01:13]} d4 {[%emt 0:00:35]} 12. Ne2 {[%emt 0:01:57]} Bg4 {[%emt 0:02:35]} 13. Bg5 $11 {[%emt 0:03:38] LiveBook: 153 Games} Re8 {[%emt 0:03:18]} 14. Re1 {[%emt 0:01:45]} Qd6 {[%emt 0:04:41]} 15. Qd2 {[%emt 0:01:25]} Rad8 {[%emt 0:10:13]} 16. Ng3 {[%emt 0:06:32]} Ne5 {[%emt 0:23:53]} 17. h3 {[%emt 0:20:13]} Bd7 {[%emt 0:10:23]} 18. Bf1 {[%emt 0:07:55]} h6 {[%emt 0:04:20]} 19. Bf4 {[%emt 0:03:15]} g5 {[%emt 0:01:09]} 20. Bxe5 {[%emt 0:01:31]} Rxe5 {[%emt 0:00:09]} 21. c4 {[%emt 0:12:21]} Be6 {[%emt 0:03:58]} 22. Bd3 {[%emt 0:05:03]} b6 {[%emt 0:02:25]} 23. Rxe5 {[%emt 0:01:36]} Qxe5 {[%emt 0:00:03]} 24. Re1 {[%emt 0:01:04]} Qc7 {[%emt 0:04:39]} 25. Qe2 {[%emt 0:02:58]} Qf4 {[%emt 0:05:59]} 26. b3 {[%emt 0:06:36]} a5 {[%emt 0:01:42]} 27. Bb1 {[%emt 0:05:47]} Qd6 {[%emt 0:08:15]} 28. Qd3 {[%emt 0:01:04]} Kf8 {[%emt 0:03:12]} 29. a4 {[%emt 0:01:50]} Qb4 {[%emt 0:01:12]} 30. Rd1 {[%emt 0:00:47]} Rd7 {[%emt 0:02:26]} 31. Ne2 {[%emt 0:01:25]} g4 {[%emt 0:02:05]} 32. h4 {[%emt 0:03:56]} Qc5 {[%emt 0:01:59]} 33. Bc2 {[%emt 0:01:53]} Ke7 {[%emt 0:02:40]} 34. g3 {[%emt 0:01:56]} Ke8 {[%emt 0:01:13]} 35. Nxd4 {[%emt 0:01:21]} Qe5 {[%emt 0:00:50]} 36. Qe2 {[%emt 0:05:11]} Qxe2 {[%emt 0:00:42]} 37. Nxe2 {[%emt 0:00:01]} Rxd1+ {[%emt 0:00:05]} 38. Bxd1 {[%emt 0:00:06]} h5 {[%emt 0:00:44]} 39. Nf4 {[%emt 0:00:35]} Bf5 {[%emt 0:00:26]} 40. Kf1 {[%emt 0:01:38]} Kd7 {[%emt 0:00:34]} 41. Ke2 {[%emt 0:03:27]} Kd6 {[%emt 0:00:55]} 42. Nd3 {[%emt 0:03:10]} Nd7 {[%emt 0:14:45]} 43. Ke3 {[%emt 0:01:34]} Bxd3 {[%emt 0:02:18]} 44. Kxd3 {[%emt 0:02:19]} Ke5 {[%emt 0:00:10]} 45. f3 {[%emt 0:03:19]} Nc5+ {[%emt 0:01:19]} 46. Kc3 {[%emt 0:00:46]} f5 {[%emt 0:07:35]} 47. b4 {[%emt 0:01:34]} f4 {[%emt 0:04:04]} 48. gxf4+ {[%emt 0:03:19]} Kxf4 {[%emt 0:00:02]} 49. bxc5 {[%emt 0:00:16]} g3 {[%emt 0:01:37]} 50. cxb6 {[%emt 0:00:13]} g2 {[%emt 0:01:05]} 51. b7 {[%emt 0:00:10]} g1=Q {[%emt 0:00:10]} 52. b8=Q+ {[%emt 0:00:18]} 1-0

[Event "SVK-ch Open 2018"]
[Site "Banska Stiavnica"]
[Date "2018.07.10"]
[Round "4"]
[White "Sikora, Jan"]
[Black "Posa, Norbert"]
[Result "0-1"]
[ECO "B10"]
[WhiteElo "2209"]
[BlackElo "2036"]
[Annotator "NA"]
[PlyCount "68"]
[EventDate "2018.07.07"]
[EventType "swiss"]
[EventCountry "SVK"]
[SourceTitle "playchess.com"]
[Source "ChessBase"]
[SourceQuality "1"]
[TimeControl "40/5400+30:1800+30"]

1. e4 {[%emt 0:00:00]} c6 {[%emt 0:00:00]} 2. Nc3 {[%emt 0:00:55]} d5 {[%emt 0:00:04]} 3. Nf3 {[%emt 0:00:03]} Nf6 {[%emt 0:00:11]} 4. e5 {[%emt 0:00:17]} Ne4 {[%emt 0:00:07]} 5. Ne2 {[%emt 0:00:11]} Qb6 {[%emt 0:00:26]} 6. d4 {[%emt 0:05:24]} e6 {[%emt 0:00:18]} 7. Nfg1 {[%emt 0:07:02]} f6 {[%emt 0:09:59]} 8. f3 {[%emt 0:07:19]} Ng5 {[%emt 0:04:33]} 9. Bxg5 {[%emt 0:05:45]} fxg5 {[%emt 0:00:05]} 10. Rb1 {[%emt 0:02:58]} c5 {[%emt 0:00:51]} 11. Qd2 {[%emt 0:02:12]} Nc6 {[%emt 0:06:22]} 12. Qxg5 {[%emt 0:05:39]} cxd4 {[%emt 0:00:10]} 13. Nf4 {[%emt 0:01:17]} Bb4+ {[%emt 0:01:19]} 14. Kd1 {[%emt 0:03:12]} Bd7 {[%emt 0:04:27]} 15. Bd3 {[%emt 0:05:40]} g6 {[%emt 0:19:37]} 16. Nxg6 {[%emt 0:19:20]} Rg8 {[%emt 0:00:05]} 17. Qf6 {[%emt 0:01:14]} Ne7 {[%emt 0:05:19]} 18. Nxe7 {[%emt 0:09:29]} Bxe7 {[%emt 0:00:06]} 19. Qh6 {[%emt 0:00:15]} O-O-O {[%emt 0:10:49]} 20. Qxh7 {[%emt 0:02:16]} Bg5 {[%emt 0:00:27]} 21. g3 {[%emt 0:02:05]} Rh8 {[%emt 0:00:32]} 22. Qf7 {[%emt 0:08:17]} Rdf8 {[%emt 0:00:12]} 23. Qxf8+ {[%emt 0:00:48]} Rxf8 {[%emt 0:00:10]} 24. h4 {[%emt 0:00:02]} Be3 {[%emt 0:00:17]} 25. Ke2 {[%emt 0:00:22]} Bb5 {[%emt 0:00:18]} 26. f4 {[%emt 0:01:07]} Bxd3+ {[%emt 0:03:26]} 27. cxd3 {[%emt 0:00:31]} Qa5 {[%emt 0:01:37]} 28. Nh3 {[%emt 0:00:05]} Qd2+ {[%emt 0:01:00]} 29. Kf3 {[%emt 0:00:02]} Qxd3 {[%emt 0:00:12]} 30. Rbd1 {[%emt 0:00:44]} Qe4+ {[%emt 0:06:00]} 31. Kg4 {[%emt 0:00:44]} Rg8+ {[%emt 0:01:19]} 32. Ng5 {[%emt 0:00:36]} Qg2 {[%emt 0:03:38]} 33. h5 {[%emt 0:02:25]} Qe2+ {[%emt 0:07:53]} 34. Kh4 {[%emt 0:00:46]} Rh8 {[%emt 0:00:54]} 0-1